bitfinex-derivatives/quotes_SOLF0:USTF0_20260211
["timestamp","ask_amount","ask_price","bid_price","bid_amount"]
[1770838413515,22.6554,79.503,79.433,14.11440963]
[1770838413516,14.49123188,79.469,79.433,14.11440963]
[1770838414819,14.49123188,79.459,79.413,14.11440963]
[1770838415027,4.0561803,79.45,79.413,14.11440963]
[1770838415324,14.49123188,79.449,79.401,14.11440963]
[1770838415724,11.3363,79.443,79.401,14.11440963]
[1770838417023,11.3363,79.443,79.404,14.11440963]
[1770838418921,25.82643188,79.45,79.404,14.11440963]
[1770838419120,25.82643188,79.45,79.411,14.11440963]
[1770838419321,11.336,79.445,79.411,14.11440963]
[1770838419621,14.49123188,79.45,79.383,192.48]
[1770838419622,14.49123188,79.462,79.421,14.11440963]
[1770838419822,18.54741218,79.46,79.421,14.11440963]
[1770838420021,14.49123188,79.459,79.421,14.11440963]
[1770838420223,11.3347,79.454,79.421,14.11440963]
[1770838421117,11.3355,79.448,79.421,14.11440963]
[1770838423126,14.49123188,79.459,79.421,14.11440963]
[1770838424432,14.49123188,79.449,79.406,14.11440963]
[1770838424833,14.49123188,79.439,79.391,14.11440963]
[1770838425130,14.49123188,79.429,79.391,14.11440963]
[1770838426237,14.49123188,79.409,79.373,192.0]
[1770838426534,14.49123188,79.399,79.359,14.11440963]
[1770838427131,11.3428,79.397,79.359,14.11440963]
[1770838427337,4.0561803,79.39,79.359,14.11440963]
[1770838427529,4.0561803,79.39,79.344,14.11440963]
[1770838427727,15.3999803,79.39,79.345,14.11440963]
[1770838427929,15.3999803,79.39,79.343,192.34]
[1770838427930,14.49123188,79.389,79.343,192.34]
[1770838428137,14.49123188,79.379,79.331,14.11440963]
[1770838429230,14.49123188,79.379,79.323,100.46]
[1770838429231,11.343,79.396,79.341,14.11440963]
[1770838429433,14.49123188,79.406,79.351,14.11440963]
[1770838429740,15.27459125,79.457,79.35,4.0561803]
[1770838429741,11.3397,79.419,79.371,14.11440963]
[1770838430732,4.0561803,79.41,79.371,14.11440963]
[1770838431033,14.7788748,79.409,79.351,15.47803636]
[1770838431740,11.3419,79.404,79.351,15.47803636]
[1770838432039,11.50645096,79.455,79.351,15.47803636]
[1770838432040,14.7788748,79.399,79.351,15.47803636]
[1770838432234,11.3434,79.393,79.351,15.47803636]
[1770838433742,14.7788748,79.399,79.351,15.47803636]
[1770838435239,14.7788748,79.409,79.361,15.47803636]
[1770838437541,4.0561803,79.4,79.361,15.47803636]
[1770838437743,18.8350551,79.4,79.361,15.47803636]
[1770838437945,14.7788748,79.399,79.361,15.47803636]
[1770838438145,14.7788748,79.399,79.35,100.46]
[1770838438146,4.0561803,79.39,79.35,100.46]
[1770838438439,4.0561803,79.39,79.351,15.47803636]
[1770838438646,14.7788748,79.399,79.351,15.47803636]
[1770838439833,14.7788748,79.399,79.353,15.47803636]
[1770838440236,4.0561803,79.41,79.358,15.47803636]
[1770838440436,4.0561803,79.41,79.361,15.47803636]
[1770838440638,4.0561803,79.4,79.361,15.47803636]
[1770838441747,4.0561803,79.38,79.335,15.47803636]
[1770838442150,14.7788748,79.389,79.335,15.47803636]
[1770838442345,18.8350551,79.38,79.341,11.3508]
[1770838442946,14.7788748,79.38,79.341,11.3508]
[1770838444246,14.7788748,79.38,79.341,26.82883636]
[1770838444546,14.7788748,79.38,79.347,11.3499]
[1770838444753,14.7788748,79.38,79.341,15.47803636]
[1770838445352,18.8350551,79.39,79.341,15.47803636]
[1770838445748,11.3442,79.387,79.341,15.47803636]
[1770838445950,14.7788748,79.386,79.341,15.47803636]
[1770838446142,11.3447,79.384,79.341,15.47803636]
[1770838446345,14.7788748,79.383,79.341,15.47803636]
[1770838446745,18.8350551,79.38,79.341,15.47803636]
[1770838447146,14.7788748,79.38,79.341,15.47803636]
[1770838447750,14.7788748,79.38,79.343,11.3504]
[1770838447957,14.7788748,79.38,79.343,26.82843636]
[1770838449455,14.7788748,79.38,79.344,15.47803636]
[1770838452556,26.1244748,79.378,79.337,15.47803636]
[1770838452956,11.3446,79.384,79.34,11.3509]
[1770838453152,11.3446,79.384,79.341,15.47803636]
[1770838454864,11.3446,79.384,79.346,11.35]
[1770838455854,11.3433,79.393,79.355,15.47803636]
[1770838456054,14.7788748,79.402,79.355,15.47803636]
[1770838456255,4.0561803,79.41,79.361,15.47803636]
[1770838456465,14.7788748,79.414,79.371,15.47803636]
[1770838456952,14.7788748,79.414,79.377,11.3456]
[1770838458055,14.7788748,79.423,79.38,15.47803636]
[1770838458450,18.8350551,79.42,79.38,15.47803636]
[1770838458855,14.7788748,79.429,79.388,11.344]
[1770838459059,4.06081122,79.44,79.391,15.47803636]
[1770838459260,18.83968602,79.44,79.391,15.47803636]
[1770838459468,14.7788748,79.439,79.391,15.47803636]
[1770838460269,14.7788748,79.438,79.393,26.82123636]
[1770838460758,14.7788748,79.438,79.393,15.47803636]
[1770838461758,18.95653023,79.45,79.401,14.85807866]
[1770838462058,14.89571901,79.449,79.401,14.85807866]
[1770838462765,14.89571901,79.449,79.406,11.3414]
[1770838462966,14.89571901,79.448,79.401,14.85807866]
[1770838463165,14.89571901,79.448,79.399,11.3424]
[1770838463465,14.89571901,79.429,79.381,14.85807866]
[1770838463863,14.89571901,79.439,79.381,14.85807866]
[1770838464663,11.3371,79.437,79.381,14.85807866]
[1770838464857,26.23281901,79.437,79.381,14.85807866]
[1770838465066,14.89571901,79.436,79.381,14.85807866]
[1770838465368,11.3374,79.435,79.381,14.85807866]
[1770838465558,14.89571901,79.434,79.381,14.85807866]
[1770838466662,14.89571901,79.431,79.381,14.85807866]
[1770838466865,4.06081122,79.43,79.381,14.85807866]
[1770838467265,14.89571901,79.431,79.371,111.92]
[1770838467266,14.89571901,79.431,79.39,19.60483766]
[1770838468159,4.06081122,79.42,79.376,15.54402644]
[1770838468359,15.29469498,79.429,79.376,15.54402644]
[1770838469262,15.29469498,79.429,79.381,15.54402644]
[1770838469458,11.338,79.431,79.391,15.54402644]
[1770838469662,15.29469498,79.472,79.401,15.54402644]
[1770838469866,15.29469498,79.439,79.39,4.06081122]
[1770838470166,15.29469498,79.439,79.391,15.54402644]
[1770838471165,4.06081122,79.44,79.391,15.54402644]
[1770838471365,26.63009498,79.449,79.401,15.54402644]
[1770838471565,15.29469498,79.448,79.401,15.54402644]
[1770838475575,15.29469498,79.448,79.402,11.342]
[1770838476573,15.29469498,79.448,79.408,11.3411]
[1770838477677,15.29469498,79.448,79.402,15.54402644]
[1770838478778,15.29469498,79.448,79.405,26.88552644]
[1770838478974,15.29469498,79.448,79.37,100.5]
[1770838478975,4.06081122,79.47,79.42,4.06081122]
[1770838479176,15.29469498,79.474,79.431,15.54402644]
[1770838489393,11.332,79.473,79.431,15.54402644]
[1770838491495,11.332,79.473,79.433,16.56187046]
[1770838493301,26.87802585,79.473,79.433,16.56187046]
[1770838494193,15.54602585,79.494,79.441,16.56187046]
[1770838494391,15.54602585,79.509,79.451,16.56187046]
[1770838494787,11.3288,79.495,79.46,16.56187046]
[1770838495188,4.06081122,79.5,79.46,16.56187046]
[1770838495597,15.54602585,79.489,79.449,11.3352]
[1770838496092,15.54602585,79.479,79.442,11.3363]
[1770838497100,15.54602585,79.479,79.444,27.89787046]
[1770838498203,26.87572585,79.489,79.447,16.56187046]
[1770838498397,15.54602585,79.489,79.447,16.56187046]
[1770838498792,15.54602585,79.504,79.462,16.56187046]
[1770838499396,15.54602585,79.503,79.462,16.56187046]
[1770838500791,11.328,79.501,79.462,16.56187046]
[1770838500997,4.06081122,79.48,79.432,16.56187046]
[1770838501200,15.54602585,79.479,79.432,16.56187046]
[1770838501399,11.3324,79.47,79.432,16.56187046]
[1770838502093,11.3311,79.479,79.441,16.56187046]
[1770838502298,15.54602585,79.492,79.441,16.56187046]
[1770838502494,15.54602585,79.492,79.451,16.56187046]
[1770838504699,15.54602585,79.492,79.453,11.3347]
[1770838505000,15.54602585,79.509,79.461,16.56187046]
[1770838505810,15.54602585,79.509,79.461,27.89547046]
[1770838507904,15.54602585,79.509,79.463,11.3333]
[1770838508107,15.54602585,79.509,79.464,16.56187046]
[1770838508509,15.54602585,79.519,79.464,16.56187046]
[1770838508705,15.54602585,79.509,79.472,11.332]
[1770838509312,15.54602585,79.489,79.451,16.56187046]
[1770838509816,15.54602585,79.5,79.451,16.56187046]
[1770838510402,15.54602585,79.499,79.455,11.3344]
[1770838511616,15.54602585,79.499,79.451,16.56187046]
[1770838512910,4.06081122,79.49,79.451,16.56187046]
[1770838513311,4.06081122,79.47,79.421,16.56187046]
[1770838513506,15.54602585,79.459,79.401,16.56187046]
[1770838514207,15.54602585,79.459,79.411,16.56187046]
[1770838514715,15.54602585,79.459,79.413,11.3405]
[1770838515016,15.54602585,79.459,79.414,16.56187046]
[1770838515818,15.54602585,79.459,79.418,16.56187046]
[1770838516219,15.54602585,79.459,79.421,16.56187046]
[1770838517012,19.60683707,79.47,79.421,16.56187046]
[1770838517215,15.54602585,79.469,79.421,16.56187046]
[1770838517815,4.06081122,79.46,79.421,16.56187046]
[1770838518016,15.54602585,79.469,79.421,16.56187046]
[1770838518820,15.54602585,79.469,79.424,11.3388]
[1770838519619,15.54602585,79.469,79.433,16.56187046]
[1770838520215,15.54602585,79.469,79.436,11.3371]
[1770838520524,115.69459125,79.506,79.411,16.56187046]
[1770838520525,16.50677025,79.459,79.411,16.56187046]
[1770838521824,16.50677025,79.459,79.427,11.3384]
[1770838523721,16.50677025,79.459,79.423,15.88446265]
[1770838524221,20.56394222,79.47,79.423,15.88446265]
[1770838527625,20.56394222,79.47,79.425,11.3387]
[1770838528020,20.56394222,79.47,79.426,15.79880283]
[1770838528827,20.56394222,79.47,79.427,11.3385]
[1770838529429,20.56394222,79.47,79.427,27.13730283]
[1770838530826,16.1231701,79.499,79.434,15.79880283]
[1770838531025,16.1231701,79.499,79.441,15.79880283]
[1770838531530,16.1231701,79.499,79.463,11.3333]
[1770838532530,16.1231701,79.489,79.456,11.3343]
[1770838532831,4.05717197,79.48,79.441,15.79880283]
[1770838533631,16.1231701,79.479,79.433,100.44]
[1770838533832,16.1231701,79.479,79.434,15.79880283]
[1770838534231,16.1231701,79.479,79.434,27.13620283]
[1770838534637,16.1231701,79.479,79.435,15.79880283]
[1770838535131,16.1231701,79.479,79.437,15.79880283]
[1770838536433,16.1231701,79.479,79.439,11.3366]
[1770838536630,16.1231701,79.479,79.44,15.79880283]
[1770838536934,16.1231701,79.479,79.424,15.79880283]
[1770838537233,16.1231701,79.469,79.424,15.79880283]
[1770838537733,16.1231701,79.469,79.427,11.3383]
[1770838539737,16.1231701,79.469,79.424,15.79880283]
[1770838539738,16.1231701,79.469,79.433,11.3376]
[1770838543338,16.1231701,79.469,79.439,11.3366]
[1770838546542,16.1231701,79.469,79.444,11.3359]
[1770838550445,15.27535032,79.48,79.453,11.3347]
[1770838550743,4.05717197,79.49,79.444,16.24126104]
[1770838550744,15.27535032,79.489,79.444,16.24126104]
[1770838551140,4.05717197,79.48,79.455,11.3345]
[1770838552344,19.33252229,79.48,79.455,11.3345]
[1770838552647,100.44,79.509,79.419,22.679]
[1770838552648,15.27535032,79.469,79.442,11.3362]
[1770838553646,15.27535032,79.469,79.432,16.24126104]
[1770838554051,4.05717197,79.46,79.418,100.44]
[1770838554244,4.05717197,79.46,79.419,16.24126104]
[1770838555245,26.60795032,79.469,79.419,16.24126104]
[1770838555444,15.27535032,79.468,79.419,16.24126104]
[1770838555851,11.3315,79.476,79.422,16.24126104]
[1770838556249,15.27535032,79.475,79.422,16.24126104]
[1770838556752,11.3318,79.474,79.424,16.24126104]
[1770838557348,4.05717197,79.47,79.424,16.24126104]
[1770838559546,11.3318,79.474,79.424,16.24126104]
[1770838559746,15.27535032,79.475,79.424,16.24126104]
[1770838560752,15.27535032,79.475,79.427,16.24126104]
[1770838561255,15.27535032,79.475,79.418,100.44]
[1770838561256,11.67454741,79.496,79.441,16.24126104]
[1770838561455,11.67454741,79.496,79.403,23.53650552]
[1770838561456,4.05717197,79.51,79.46,4.05717197]
[1770838561652,19.33252229,79.52,79.471,16.24126104]
[1770838562457,15.27535032,79.529,79.471,16.24126104]
[1770838563052,11.67454741,79.547,79.482,16.24126104]
[1770838563256,15.27535032,79.555,79.501,16.24126104]
[1770838563459,15.27535032,79.555,79.511,16.24126104]
[1770838563660,4.05717197,79.57,79.511,16.24126104]
[1770838563861,4.05717197,79.57,79.52,4.05717197]
[1770838564054,4.05717197,79.57,79.521,16.24126104]
[1770838564252,15.27535032,79.569,79.521,16.24126104]
[1770838565356,15.27535032,79.582,79.521,16.24126104]
[1770838565657,4.05717197,79.56,79.521,16.24126104]
[1770838566049,15.27535032,79.569,79.521,16.24126104]
[1770838566560,4.05717197,79.58,79.531,16.24126104]
[1770838566753,15.27535032,79.579,79.531,16.24126104]
[1770838566949,4.05717197,79.57,79.531,16.24126104]
[1770838567359,15.27535032,79.579,79.534,16.24126104]
[1770838567853,4.05717197,79.57,79.534,16.24126104]
[1770838568058,15.27535032,79.579,79.534,16.24126104]
[1770838568656,15.27535032,79.579,79.535,11.323]
[1770838569657,15.27535032,79.579,79.535,27.56426104]
[1770838569955,100.4,79.611,79.535,16.24126104]
[1770838570158,4.05717197,79.61,79.551,16.24126104]
[1770838570364,4.05717197,79.61,79.565,11.3188]
[1770838570558,11.67454741,79.65,79.566,16.24126104]
[1770838570757,31.13212644,79.699,79.544,176.1173]
[1770838570758,4.05717197,79.64,79.581,16.24126104]
[1770838570952,4.05717197,79.64,79.589,16.24126104]
[1770838571149,100.38,79.672,79.589,16.24126104]
[1770838571150,4.05717197,79.62,79.589,16.24126104]
[1770838571354,4.05717197,79.63,79.589,16.24126104]
[1770838571555,4.05717197,79.64,79.591,16.24126104]
[1770838571758,4.05717197,79.65,79.591,16.24126104]
[1770838572162,4.05717197,79.65,79.604,11.3131]
[1770838572358,7.80179405,79.654,79.605,16.24126104]
[1770838572755,7.80179405,79.654,79.611,16.24126104]
[1770838572959,100.36,79.681,79.611,16.24126104]
[1770838572960,4.05717197,79.67,79.611,16.24126104]
[1770838573361,4.05717197,79.67,79.621,16.24126104]
[1770838575557,7.76398891,79.687,79.631,16.24126104]
[1770838575755,4.05717197,79.7,79.641,16.24126104]
[1770838576767,7.68776062,79.669,79.627,16.24126104]
[1770838576971,7.68776062,79.689,79.641,16.24126104]
[1770838577973,4.05717197,79.69,79.641,16.24126104]
[1770838578168,4.05717197,79.68,79.641,16.24126104]
[1770838578467,4.05717197,79.67,79.627,16.24126104]
[1770838579670,7.79777324,79.679,79.631,16.24126104]
[1770838579973,4.05717197,79.69,79.631,16.24126104]
[1770838580167,11.64642372,79.69,79.631,16.24126104]
[1770838580468,7.58925175,79.689,79.631,16.24126104]
[1770838580871,7.58925175,79.689,79.634,16.36725641]
[1770838581363,4.05717197,79.68,79.634,16.36725641]
[1770838582665,4.05717197,79.69,79.652,16.36725641]
[1770838582863,335.36705915,79.707,79.652,16.36725641]
[1770838583171,4.0329393,79.7,79.663,11.3049]
[1770838583673,4.0329393,79.7,79.652,16.36725641]
[1770838583871,12.27516299,79.69,79.647,11.3071]
[1770838584063,12.27516299,79.69,79.647,27.67435641]
[1770838584064,8.24222369,79.69,79.647,27.67435641]
[1770838584270,335.36705915,79.707,79.662,16.36725641]
[1770838585070,335.36705915,79.707,79.674,16.36725641]
[1770838585269,4.0329393,79.72,79.674,16.36725641]
[1770838585871,4.0329393,79.71,79.675,11.3031]
[1770838586173,8.19112476,79.719,79.675,11.3031]
[1770838586367,4.0329393,79.71,79.675,11.3031]
[1770838586575,4.0329393,79.7,79.663,11.3048]
[1770838586878,4.0329393,79.7,79.662,16.36725641]
[1770838587268,100.22,79.737,79.615,22.6233]
[1770838587269,4.0329393,79.68,79.655,11.306]
[1770838587671,4.0329393,79.68,79.633,15.16873586]
[1770838588278,7.99086951,79.704,79.651,11.3065]
[1770838588471,4.0329393,79.69,79.651,15.16873586]
[1770838588974,7.99086951,79.704,79.651,15.16873586]
[1770838589871,7.94108174,79.703,79.652,15.16873586]
[1770838590076,7.94108174,79.703,79.62,134.62411496]
[1770838590077,7.94108174,79.703,79.621,15.16873586]
[1770838591567,7.91968832,79.689,79.621,15.16873586]
[1770838592279,8.09576535,79.677,79.636,11.3087]
[1770838593885,8.04834691,79.686,79.64,11.3081]
[1770838594777,11.3021,79.683,79.64,11.3081]
[1770838595580,10.80411496,79.69,79.643,15.16873586]
[1770838595775,7.94249269,79.689,79.643,15.16873586]
[1770838596484,8.47373323,79.709,79.643,15.16873586]
[1770838596685,178.0,79.775,79.6,175.9927]
[1770838596686,8.44987672,79.723,79.645,15.16873586]
[1770838596887,8.44987672,79.723,79.647,15.16873586]
[1770838597183,9.44199168,79.73,79.687,11.3014]
[1770838598281,10.80411496,79.74,79.69,16.22832231]
[1770838599886,11.2944,79.737,79.691,11.3008]
[1770838600281,11.2952,79.732,79.691,11.3008]
[1770838600587,0.82934073,79.719,79.675,15.80592339]
[1770838600979,11.296,79.726,79.676,15.80592339]
[1770838601884,11.296,79.726,79.681,11.3023]
[1770838602082,12.10746689,79.734,79.682,15.70289785]
[1770838602981,11.2957,79.728,79.682,15.70289785]
[1770838603580,0.81256689,79.734,79.682,15.70289785]
[1770838604890,11.2952,79.732,79.692,11.3007]
[1770838605284,0.89207505,79.727,79.669,15.73406402]
[1770838605887,10.80411496,79.72,79.669,15.73406402]
[1770838606087,0.79861543,79.716,79.669,15.73406402]
[1770838606392,0.79861543,79.716,79.634,15.77296269]
[1770838607888,0.76843446,79.709,79.661,11.305]
[1770838608086,11.59447838,79.7,79.657,15.77270549]
[1770838608890,4.03354947,79.69,79.657,15.77270549]
[1770838609881,4.03354947,79.69,79.657,27.07840549]
[1770838612087,4.03354947,79.7,79.668,15.75812842]
[1770838613086,4.03354947,79.7,79.678,15.77451624]
[1770838613295,11.2969,79.72,79.678,15.77451624]
[1770838613296,15.33044947,79.72,79.678,15.77451624]
[1770838613590,4.03354947,79.71,79.678,15.77451624]
[1770838613787,4.03354947,79.71,79.687,11.3014]
[1770838614186,4.03354947,79.72,79.687,11.3014]
[1770838614992,4.03354947,79.72,79.653,103.32]
[1770838614993,4.03354947,79.72,79.69,15.68975008]
[1770838616890,11.96861388,79.73,79.69,15.68975008]
[1770838617890,11.2957,79.728,79.69,15.68975008]
[1770838618095,330.57929029,79.744,79.69,15.68975008]
[1770838618096,0.81003729,79.739,79.69,15.68975008]
[1770838618595,12.10423729,79.739,79.697,11.2999]
[1770838618998,1.24205598,79.738,79.69,15.68975008]
[1770838619392,1.24223506,79.727,79.684,11.3019]
[1770838619590,22.46590522,79.74,79.685,15.5125381]
[1770838619791,11.2962,79.725,79.687,11.3014]
[1770838619993,11.2962,79.725,79.688,15.5125381]
[1770838621207,1.17738305,79.727,79.688,15.5125381]
[1770838621393,1.17738305,79.74,79.688,15.5125381]
[1770838621594,329.769253,79.744,79.688,15.5125381]
[1770838622389,0.94364722,79.743,79.694,15.57857657]
[1770838623391,0.93122428,79.729,79.687,11.3014]
[1770838623992,0.91866443,79.743,79.693,15.57843973]
[1770838625801,11.294,79.74,79.701,11.2994]
[1770838627697,12.38732923,79.74,79.701,11.2994]
[1770838628195,329.769253,79.744,79.659,22.6107]
[1770838628196,1.10663869,79.728,79.689,11.3011]
[1770838628798,11.2959,79.727,79.689,11.3011]
[1770838629004,1.10663869,79.728,79.68,26.8149381]
[1770838629203,11.297,79.719,79.681,15.5125381]
[1770838629399,100.12,79.736,79.681,15.5125381]
[1770838629400,1.09497377,79.742,79.681,15.5125381]
[1770838629695,1.09497377,79.742,79.696,15.5125381]
[1770838630802,11.2941,79.74,79.702,26.8117381]
[1770838631594,13.2066391,79.74,79.702,26.8117381]
[1770838633299,13.2066391,79.74,79.703,15.5125381]
[1770838633501,22.08973357,79.75,79.712,15.5125381]
[1770838633698,11.2926,79.75,79.712,15.5125381]
[1770838634297,100.12,79.752,79.712,15.5125381]
[1770838634697,11.2925,79.751,79.712,15.5125381]
[1770838635694,11.2933,79.745,79.712,15.5125381]
[1770838637099,11.2924,79.751,79.713,11.2977]
[1770838637406,11.2924,79.751,79.714,15.5125381]
[1770838637802,11.2924,79.751,79.713,11.2977]
[1770838637803,100.12,79.752,79.721,26.8091381]
[1770838638111,2.873e-05,79.744,79.715,115.06]
[1770838638408,2.873e-05,79.744,79.712,22.5957]
[1770838638610,2.873e-05,79.744,79.713,184.4]
[1770838638996,4.02405076,79.79,79.73,4.02405076]
[1770838639199,4.02405076,79.79,79.74,4.02405076]
[1770838639398,4.02405076,79.79,79.749,11.2927]
[1770838639606,88.85150632,79.79,79.73,4.02405076]
[1770838639907,96.11595556,79.779,79.739,11.294]
[1770838640101,84.82745556,79.779,79.73,4.02405076]
[1770838640497,84.82745556,79.779,79.738,11.2941]
[1770838640702,84.82745556,79.779,79.73,4.02405076]
[1770838640902,84.82745556,79.779,79.718,125.3]
[1770838641104,84.82745556,79.779,79.743,11.2935]
[1770838641908,84.82745556,79.779,79.72,10.78250416]
[1770838642106,100.96,79.79,79.72,10.78250416]
[1770838642311,84.75022766,79.792,79.72,10.78250416]
[1770838642511,84.75022766,79.792,79.721,22.5932]
[1770838643308,84.75022766,79.792,79.756,11.2916]
[1770838645208,84.75022766,79.792,79.72,10.77798282]
[1770838645713,84.75022766,79.792,79.753,11.2921]
[1770838647007,84.75022766,79.792,79.759,11.2912]
[1770838647713,84.75022766,79.792,79.751,11.2923]
[1770838649609,84.57656394,79.789,79.742,11.2935]
[1770838650314,84.53290106,79.782,79.731,11.2952]
[1770838650622,84.53290106,79.782,79.679,15.68547452]
[1770838650623,84.53290106,79.779,79.718,100.06]
[1770838650816,84.53290106,79.763,79.68,10.77798282]
[1770838651419,84.53290106,79.763,79.722,11.2964]
[1770838653315,84.53290106,79.763,79.705,100.06]
[1770838653520,84.53290106,79.763,79.706,144.5]
[1770838654708,84.53290106,79.763,79.729,11.2955]
[1770838654907,84.53290106,79.763,79.706,144.5]
[1770838655120,84.79048002,79.759,79.706,144.5]
[1770838655424,84.79048002,79.771,79.706,144.5]
[1770838655814,96.08008002,79.771,79.723,11.2963]
[1770838656125,84.79048002,79.771,79.723,11.2963]
[1770838656609,84.79048002,79.771,79.729,11.2954]
[1770838657827,11.29,79.769,79.729,11.2954]
[1770838658120,84.79048002,79.771,79.729,11.2954]
[1770838659428,96.08018002,79.771,79.729,11.2954]
[1770838660425,84.79048002,79.771,79.734,11.2947]
[1770838662023,84.79048002,79.771,79.727,11.2957]
[1770838662225,84.79048002,79.771,79.714,100.06]
[1770838662623,84.79048002,79.771,79.731,11.2952]
[1770838662817,84.79048002,79.771,79.713,154.44]
[1770838663023,4.02597963,79.77,79.713,154.44]
[1770838663221,88.80856545,79.77,79.713,154.44]
[1770838663926,84.78258582,79.77,79.735,11.2947]
[1770838664125,84.78482138,79.788,79.74,4.02597963]
[1770838664422,88.81080101,79.8,79.75,4.02597963]
[1770838665126,4.02597963,79.8,79.757,11.2915]
[1770838665324,4.02597963,79.81,79.76,4.02597963]
[1770838665721,4.02597963,79.82,79.77,4.02597963]
[1770838666119,4.02597963,79.82,79.778,11.2886]
[1770838666322,104.36,79.85,79.749,100.06]
[1770838666323,4.02597963,79.84,79.79,4.02597963]
[1770838666628,84.83298435,79.829,79.78,4.02597963]
[1770838666833,4.02597963,79.82,79.77,4.02597963]
[1770838667332,4.02597963,79.82,79.77,188.08597963]
[1770838667529,84.83298435,79.809,79.75,4.02597963]
[1770838667719,84.83298435,79.809,79.751,184.08]
[1770838667923,4.02597963,79.81,79.76,4.02597963]
[1770838668327,88.85896398,79.81,79.76,4.02597963]
[1770838668726,84.83298435,79.81,79.775,11.289]
[1770838668932,88.85896398,79.81,79.751,184.08]
[1770838669229,88.85896398,79.8,79.752,183.98]
[1770838669434,4.02597963,79.79,79.758,11.2914]
[1770838673333,88.85896398,79.8,79.758,11.2914]
[1770838673839,4.02597963,79.81,79.76,4.02597963]
[1770838674538,84.86128885,79.817,79.77,4.02597963]
[1770838674739,4.02597963,79.82,79.77,124.32597963]
[1770838675430,84.86128885,79.819,79.77,124.32597963]
[1770838675729,4.02597963,79.81,79.78,11.2883]
[1770838675929,88.88726848,79.81,79.77,120.3]
[1770838676536,4.02597963,79.79,79.74,4.02597963]
[1770838676836,4.02597963,79.79,79.729,478.37794407]
[1770838676837,4.02597963,79.77,79.732,185.44]
[1770838677734,4.02597963,79.77,79.735,11.2946]
[1770838678930,84.86128885,79.779,79.729,478.37794407]
[1770838679131,95.64340888,79.81,79.73,187.86]
[1770838679335,95.64340888,79.81,79.731,188.1]
[1770838679735,84.86128885,79.806,79.761,11.2909]
[1770838681041,84.86128885,79.806,79.731,188.1]
[1770838681641,84.86128885,79.804,79.759,11.2912]
[1770838682231,84.86128885,79.802,79.759,11.2912]
[1770838683043,84.86128885,79.8,79.759,11.2912]
[1770838683342,84.86128885,79.8,79.737,188.68]
[1770838683540,84.86128885,79.789,79.737,188.68]
[1770838684739,84.86128885,79.782,79.737,188.68]
[1770838685844,84.86128885,79.775,79.73,11.2954]
[1770838686038,84.86128885,79.775,79.731,190.32]
[1770838686546,84.86128885,79.773,79.732,11.295]
[1770838687144,84.86128885,79.773,79.731,190.32]
[1770838687537,84.86128885,79.773,79.729,478.37794407]
[1770838687832,84.86128885,79.769,79.72,192.06]
[1770838688038,84.86128885,79.769,79.707,192.56]
[1770838688242,84.86128885,79.78,79.708,192.56]
[1770838688440,95.64340888,79.8,79.72,10.78212003]
[1770838688640,84.86128885,79.8,79.722,15.68547452]
[1770838689048,84.86128885,79.8,79.72,10.78212003]
[1770838689542,84.86128885,79.79,79.745,11.2932]
[1770838689849,84.86128885,79.79,79.742,193.06]
[1770838690841,84.86128885,79.784,79.742,193.06]
[1770838691144,84.86128885,79.784,79.7,10.78212003]
[1770838691145,84.86128885,79.784,79.71,15.68547452]
[1770838691441,84.86128885,79.782,79.74,11.2939]
[1770838691642,84.86128885,79.782,79.74,204.6739]
[1770838692245,84.86128885,79.782,79.74,11.2939]
[1770838693646,84.86128885,79.782,79.739,100.04]
[1770838693647,84.86128885,79.78,79.739,100.04]
[1770838694147,84.86128885,79.78,79.724,115.84]
[1770838694549,84.86128885,79.767,79.724,115.84]
[1770838695142,84.86128885,79.763,79.718,11.297]
[1770838696544,84.86128885,79.763,79.725,11.2961]
[1770838698856,84.86128885,79.777,79.712,100.04]
[1770838699057,84.86128885,79.777,79.69,37.77]
[1770838699058,84.86128885,79.799,79.72,10.78212003]
[1770838699355,84.86128885,79.799,79.721,193.84]
[1770838699953,84.86128885,79.791,79.707,15.68547452]
[1770838700149,84.86128885,79.791,79.722,193.92]
[1770838700355,84.86128885,79.791,79.723,193.96]
[1770838700555,84.84346003,79.78,79.734,11.2947]
[1770838700958,84.84346003,79.769,79.734,11.2947]
[1770838701552,84.84346003,79.769,79.74,11.2939]
[1770838704557,4.02589337,79.78,79.749,11.2926]
[1770838704761,4.02589337,79.78,79.723,193.96]
[1770838704762,4.02589337,79.79,79.74,4.02589337]
[1770838705264,4.02589337,79.79,79.755,11.2918]
[1770838705559,88.8693534,79.79,79.755,11.2918]
[1770838705764,84.84346003,79.79,79.74,4.02589337]
[1770838705965,88.8693534,79.79,79.744,169.22]